bitfinex-derivatives/quotes_SOLF0:USTF0_20250523
["timestamp","ask_amount","ask_price","bid_price","bid_amount"]
[1748033936348,0.03638612,177.18,177.1,388.10650807]
[1748033936751,0.03638612,177.18,177.16,5.6434]
[1748033937652,0.03638612,177.18,177.14,118.76]
[1748033938247,0.03638612,177.18,177.17,5.6431]
[1748033939949,0.03638612,177.18,177.17,112.8831]
[1748033942250,5.23285095,177.23,177.17,107.24]
[1748033942451,5.23285095,177.23,177.18,118.76]
[1748033942854,5.23285095,177.23,177.21,5.6415]
[1748033944155,5.23285095,177.23,177.2,0.04065904]
[1748033944557,5.6417,177.22,177.2,0.04065904]
[1748033945755,5.23285095,177.23,177.2,0.04065904]
[1748033946159,5.23285095,177.23,177.2,5.68265904]
[1748033946355,5.23285095,177.23,177.2,0.04065904]
[1748033946653,5.23285095,177.23,177.22,5.6416]
[1748033949558,0.041573,177.24,177.22,5.6416]
[1748033950559,0.041573,177.24,177.23,5.6413]
[1748033951961,0.041573,177.24,177.22,5.6415]
[1748033953563,0.041573,177.24,177.2,0.04065904]
[1748033954368,0.041573,177.24,177.22,5.6413]
[1748033955464,0.041573,177.24,177.23,5.6413]
[1748033956367,0.041573,177.24,177.22,5.6414]
[1748033957372,0.041573,177.24,177.23,5.6413]
[1748033960172,7.3e-05,177.24,177.23,112.8613]
[1748033965288,7.3e-05,177.24,177.23,269.8613]
[1748033970285,5.23285095,177.31,177.23,264.22]
[1748033970993,5.23285095,177.31,177.28,5.6395]
[1748033971381,5.27175591,177.31,177.28,5.67799836]
[1748033972588,10.91065591,177.31,177.28,5.67799836]
[1748033973393,5.27175591,177.31,177.28,0.03849836]
[1748033973786,5.27175591,177.31,177.29,107.18]
[1748033973985,5.27175591,177.31,177.3,5.639]
[1748033974184,5.27175591,177.31,177.29,107.18]
[1748033974591,5.27175591,177.31,177.29,112.8193]
[1748033974794,5.27175591,177.31,177.29,107.18]
[1748033974982,5.27175591,177.31,177.3,5.639]
[1748033976392,5.27175591,177.31,177.29,107.18]
[1748033976589,0.03890496,177.31,177.29,107.18]
[1748033976984,0.03890496,177.31,177.29,112.8193]
[1748033977182,3.9246,177.37,177.29,264.18]
[1748033977385,3.9246,177.37,177.3,128.4506216]
[1748033977590,5.23285095,177.38,177.3,128.4506216]
[1748033978282,0.04149802,177.36,177.32,0.04078068]
[1748033978590,0.04149802,177.36,177.35,5.6373]
[1748033978790,0.04149802,177.36,177.35,112.7973]
[1748033978985,0.04149802,177.36,177.35,107.16]
[1748033980786,0.04149802,177.36,177.35,112.7974]
[1748033981092,0.04149802,177.36,177.35,107.16]
[1748033981392,0.04149802,177.36,177.32,157.04078068]
[1748033981582,5.6376,177.35,177.32,157.04078068]
[1748033981898,0.04149802,177.36,177.32,157.04078068]
[1748033982787,5.6377,177.35,177.32,162.67898068]
[1748033982998,0.04149802,177.36,177.32,0.04078068]
[1748033983289,1.9403,177.35,177.32,0.04078068]
[1748033984200,5.6378,177.34,177.32,0.04078068]
[1748033984890,1.9403,177.35,177.32,0.04078068]
[1748033985094,5.6381,177.33,177.32,0.04078068]
[1748033986998,5.6393,177.3,177.25,118.2]
[1748033987193,5.6393,177.3,177.25,225.36]
[1748033987999,0.03962587,177.29,177.26,0.03858903]
[1748033988395,5.67902587,177.29,177.26,0.03858903]
[1748033989301,5.6397,177.28,177.26,5.67868903]
[1748033989487,5.6397,177.28,177.26,0.03858903]
[1748033990798,5.67922587,177.29,177.26,0.03858903]
[1748033991103,5.67922587,177.29,177.26,5.67878903]
[1748033991902,5.64,177.27,177.26,0.03858903]
[1748033992101,0.03962587,177.29,177.21,118.2]
[1748033992399,5.6412,177.24,177.21,118.2]
[1748033993097,5.68452518,177.24,177.21,123.88382256]
[1748033993401,5.68452518,177.24,177.21,118.24212256]
[1748033993902,5.6413,177.23,177.21,118.24212256]
[1748033994602,5.68442518,177.24,177.21,123.88402256]
[1748033994804,0.04332518,177.24,177.21,118.24212256]
[1748033995198,0.04332518,177.24,177.21,0.04212256]
[1748033995804,5.6416,177.22,177.21,0.04212256]
[1748033996399,5.6423,177.2,177.17,118.22]
[1748033996902,5.642,177.21,177.17,123.8629]
[1748033997404,0.04162498,177.21,177.2,5.6422]
[1748033999005,5.23285095,177.27,177.24,5.6408]
[1748033999205,5.23285095,177.27,177.22,225.44]
[1748033999399,9.10225095,177.31,177.22,225.44]
[1748033999601,9.10225095,177.31,177.26,5.6401]
[1748033999796,5.6392,177.3,177.26,5.6401]
[1748034000103,5.67811586,177.3,177.26,5.6808374]
[1748034000305,5.67811586,177.3,177.27,5.6399]
[1748034000499,0.03891586,177.3,177.26,0.0407374]
[1748034001503,5.6396,177.29,177.26,0.0407374]
[1748034001801,0.03891586,177.3,177.26,0.0407374]
[1748034002304,5.6398,177.28,177.26,0.0407374]
[1748034002503,0.03891586,177.3,177.26,0.0407374]
[1748034003507,5.64,177.27,177.26,0.0407374]
[1748034003699,0.03891586,177.3,177.22,5.6414]
[1748034003895,3.8694,177.31,177.21,118.24]
[1748034004102,9.9906216,177.3,177.17,225.42]
[1748034004401,118.24,177.29,177.17,225.42]
[1748034004600,118.24,177.29,177.17,118.24]
[1748034004803,0.04197503,177.25,177.17,118.24]
[1748034005108,118.24,177.24,177.17,123.8831]
[1748034005309,3.8246,177.23,177.17,123.8831]
[1748034005611,5.6423,177.2,177.17,123.8831]
[1748034005800,5.67792109,177.2,177.17,123.8831]
[1748034006510,0.03562109,177.2,177.17,123.8831]
[1748034007110,0.03562109,177.2,177.18,5.6429]
[1748034007311,0.03562109,177.2,177.17,118.24]
[1748034007609,5.67782109,177.2,177.17,118.24]
[1748034008114,0.03562109,177.2,177.17,123.8829]
[1748034008609,5.67802109,177.2,177.17,123.8829]
[1748034008802,0.03562109,177.2,177.17,118.24]
[1748034009506,0.03562109,177.2,177.12,5.6447]
[1748034009714,118.07562109,177.2,177.12,5.6447]
[1748034010105,118.07562109,177.2,177.11,9.9906216]
[1748034010702,0.03562109,177.2,177.11,9.9906216]
[1748034011412,0.03562109,177.2,177.16,5.6434]
[1748034012013,5.67812109,177.2,177.16,5.6434]
[1748034012213,0.03562109,177.2,177.16,5.6434]
[1748034012515,0.03562109,177.2,177.15,5.6437]
[1748034012717,5.6428,177.19,177.15,5.6437]
[1748034013916,5.6429,177.18,177.15,5.6437]
[1748034014417,0.03562109,177.2,177.1,225.26]
[1748034014601,0.04016604,177.17,177.1,225.26]
[1748034015318,5.6441,177.15,177.12,5.6446]
[1748034015918,5.6436,177.16,177.12,5.6446]
[1748034016313,0.04016604,177.17,177.12,5.6446]
[1748034016505,5.644,177.15,177.1,225.26]
[1748034016915,5.6436,177.16,177.12,5.6447]
[1748034017116,0.04016604,177.17,177.12,5.6447]
[1748034017820,5.644,177.15,177.12,5.6447]
[1748034018011,118.06,177.16,177.05,118.06]
[1748034018210,0.0393423,177.12,177.05,235.2906216]
[1748034019217,0.0393423,177.12,177.06,225.3]
[1748034019409,5.6451,177.11,177.06,225.3]
[1748034019609,0.0393423,177.12,177.06,225.3]
[1748034020123,0.0393423,177.12,177.11,5.6451]
[1748034024823,118.08,177.22,177.15,5.6437]
[1748034025826,5.68164722,177.2,177.17,0.03829465]
[1748034026320,5.6429,177.18,177.17,0.03829465]
[1748034026723,0.03914722,177.2,177.11,107.26]
[1748034027024,118.08,177.22,177.13,5.6443]
[1748034027725,0.03867665,177.19,177.13,5.6443]
[1748034027926,0.03867665,177.19,177.14,5.6441]
[1748034028117,0.03867665,177.19,177.11,107.26]
[1748034028526,5.68127665,177.19,177.14,5.6439]
[1748034029024,5.6429,177.18,177.14,5.6439]
[1748034029325,0.03867665,177.19,177.11,107.26]
[1748034029524,5.644,177.15,177.1,225.34]
[1748034029726,0.04292127,177.14,177.1,225.34]
[1748034029923,0.04292127,177.14,177.11,5.6448]
[1748034030123,0.04292127,177.14,177.1,225.34]
[1748034030324,0.04292127,177.14,177.1,235.3306216]
[1748034030627,0.04292127,177.14,177.13,5.6445]
[1748034031121,0.04292127,177.14,177.1,235.3306216]
[1748034032118,0.04292127,177.14,177.13,5.6445]
[1748034035032,123.31285095,177.21,177.13,9.9906216]
[1748034035329,123.31285095,177.21,177.14,118.08]
[1748034035730,118.08,177.21,177.14,118.08]
[1748034035922,5.6424,177.2,177.16,5.6432]
[1748034036122,5.68223376,177.2,177.16,5.68055204]
[1748034036635,5.6425,177.19,177.16,0.03735204]
[1748034038126,5.6425,177.19,177.16,5.68085204]
[1748034038434,5.6425,177.19,177.16,0.03735204]
[1748034038626,0.03983376,177.2,177.16,0.03735204]
[1748034039134,5.6432,177.17,177.16,0.03735204]
[1748034039824,5.6446,177.13,177.1,112.8853]
[1748034040128,117.96,177.17,177.09,118.08]
[1748034040426,13.7393216,177.16,177.04,123.06650807]
[1748034040633,13.7393216,177.16,177.04,230.30650807]
[1748034040930,5.646,177.09,177.06,5.6466]
[1748034041131,0.04144276,177.12,177.04,230.30650807]
[1748034041330,5.6463,177.08,177.05,5.6469]
[1748034042034,5.6464,177.07,177.04,235.95380807]
[1748034042232,0.04134937,177.1,176.94,492.84650807]
[1748034042422,0.04087359,177.06,177.0,117.98]
[1748034042626,5.6472,177.05,177.01,5.648]
[1748034042826,0.04087359,177.06,177.0,117.98]
[1748034043023,0.04087359,177.06,177.01,9.9906216]
[1748034043227,0.04087359,177.06,177.05,5.647]
[1748034043435,0.04087359,177.06,177.05,123.627]
[1748034046337,0.04087359,177.06,177.05,5.647]
[1748034046839,0.04087359,177.06,177.04,112.9072]
[1748034047134,0.04087359,177.06,177.04,5.6472]
[1748034047435,0.04087359,177.06,177.03,123.6475]
[1748034048740,0.04087359,177.06,177.03,118.0]
[1748034048941,5.68777359,177.06,177.03,118.0]
[1748034049147,0.04087359,177.06,177.03,118.0]
[1748034049340,0.04087359,177.06,177.03,123.6474]
[1748034049534,0.04087359,177.06,177.03,118.0]
[1748034049844,0.04087359,177.06,177.05,5.647]
[1748034050042,0.04087359,177.06,177.03,118.0]
[1748034050548,0.04087359,177.06,177.04,5.6471]
[1748034051251,0.04087359,177.06,177.03,123.6475]
[1748034051954,0.04087359,177.06,177.04,5.6472]
[1748034052857,5.68767359,177.06,177.03,123.6475]
[1748034053555,5.68767359,177.06,176.95,160.8946]
[1748034053556,0.04087359,177.06,176.97,118.02]
[1748034053756,0.04301879,177.03,176.97,225.3]
[1748034054054,0.04301879,177.03,177.02,5.648]
[1748034060857,118.02,177.1,177.01,128.0106216]
[1748034061061,5.23285095,177.12,177.04,9.9906216]
[1748034061258,5.23285095,177.12,177.05,118.02]
[1748034061660,5.23285095,177.12,177.05,128.0106216]
[1748034061858,0.03821262,177.1,177.07,0.03865732]
[1748034062264,0.03821262,177.1,177.09,5.6457]
[1748034064369,1.8766,177.16,177.14,5.6439]
[1748034064570,123.25285095,177.18,177.09,128.0106216]
[1748034065067,123.25285095,177.18,177.05,1.884]
[1748034065266,133.25960763,177.18,177.02,131.79825668]
[1748034065471,0.03874789,177.12,177.1,5.6453]
[1748034065668,5.6439,177.15,177.1,5.6453]
[1748034065669,0.03749485,177.13,177.1,5.6453]
[1748034065970,0.03749485,177.13,177.09,0.03585528]
[1748034066169,0.03749485,177.13,177.1,5.6453]
[1748034066465,0.03749485,177.13,177.09,0.03585528]
[1748034066670,0.03749485,177.13,177.09,107.31585528]
[1748034067968,0.03749485,177.13,177.12,5.6448]
[1748034068967,0.03749485,177.13,177.09,0.03585528]
[1748034069577,0.03749485,177.13,177.09,5.68135528]
[1748034069863,0.03749485,177.13,177.09,0.03585528]
[1748034070669,0.03749485,177.13,177.1,5.6451]
[1748034070865,0.03749485,177.13,177.09,0.03585528]
[1748034071365,0.03749485,177.13,177.11,5.6451]
[1748034071770,0.03749485,177.13,177.09,0.03585528]
[1748034071964,0.03749485,177.13,177.1,5.6452]
[1748034072869,0.03749485,177.13,177.09,0.03585528]
[1748034073365,0.03749485,177.13,177.12,5.6448]
[1748034074269,0.03749485,177.13,177.09,157.03585528]
[1748034074968,0.03749485,177.13,177.12,5.6448]
[1748034075477,0.03749485,177.13,177.09,157.03585528]
[1748034075761,0.03749485,177.13,177.12,5.6448]
[1748034078270,0.03749485,177.13,177.12,123.5848]
[1748034078666,9.485e-05,177.13,177.12,123.5848]
[1748034078865,5.23285095,177.2,177.19,5.6425]
[1748034079573,5.23285095,177.23,177.21,5.6417]
[1748034079772,5.23285095,177.23,177.2,0.04318649]
[1748034080166,5.23285095,177.23,177.21,5.6417]
[1748034080669,5.23285095,177.23,177.2,0.04318649]
[1748034081075,5.23285095,177.23,177.21,5.6418]
[1748034081675,5.23285095,177.23,177.2,0.04318649]
[1748034082281,5.23285095,177.23,177.2,5.68538649]
[1748034082878,0.04282273,177.24,177.21,5.6418]
[1748034083176,0.04282273,177.24,177.2,0.04318649]
[1748034083376,0.04282273,177.24,177.21,5.6418]
[1748034083577,0.04282273,177.24,177.2,0.04318649]
[1748034083773,117.94282273,177.24,177.15,157.0]
[1748034084074,10.00675668,177.22,177.1,225.14]
[1748034084281,10.00675668,177.19,177.1,117.9]
[1748034084577,121.7294,177.18,177.08,5.10650807]
[1748034084772,0.04223976,177.15,177.11,0.03613085]
[1748034084972,0.04223976,177.15,177.13,5.6444]
[1748034085172,0.04223976,177.15,177.11,0.03613085]
[1748034085776,5.6444,177.14,177.11,0.03613085]
[1748034087184,5.6445,177.13,177.11,0.03613085]
[1748034088181,0.04223976,177.15,177.11,0.03613085]
[1748034089079,5.6442,177.14,177.11,0.03613085]
[1748034090278,0.04223976,177.15,177.11,0.03613085]
[1748034091684,5.6446,177.13,177.11,0.03613085]
[1748034091981,0.04223976,177.15,177.11,0.03613085]
[1748034093083,5.6444,177.14,177.11,0.03613085]
[1748034093285,0.04223976,177.15,177.11,0.03613085]
[1748034093885,5.6442,177.14,177.11,5.68103085]
[1748034094481,0.04223976,177.15,177.11,0.03613085]
[1748034096080,5.6448,177.12,177.11,0.03613085]
[1748034096278,0.04223976,177.15,177.07,117.92]
[1748034096279,117.96223976,177.15,177.07,117.92]
[1748034096475,117.92,177.15,177.07,117.92]
[1748034097078,117.92,177.15,177.07,123.5662]
[1748034097285,117.92,177.15,177.07,117.92]
[1748034097482,0.04007179,177.13,177.09,0.04035384]
[1748034098779,0.04007179,177.13,177.12,5.6448]
[1748034100088,0.04007179,177.13,177.11,5.645]
[1748034100284,0.04007179,177.13,177.09,0.04035384]
[1748034100486,5.68467179,177.13,177.09,0.04035384]
[1748034100685,0.04007179,177.13,177.09,0.04035384]
[1748034100987,0.04007179,177.13,177.1,5.6453]
[1748034101288,0.04007179,177.13,177.09,0.04035384]
[1748034101684,0.04007179,177.13,177.1,5.6453]
[1748034102383,0.04007179,177.13,177.09,0.04035384]
[1748034102981,0.04007179,177.13,177.1,5.6452]
[1748034103183,0.04007179,177.13,177.09,0.04035384]
[1748034104489,0.04007179,177.13,177.1,5.6453]
[1748034104683,0.04007179,177.13,177.09,0.04035384]
[1748034105186,0.04007179,177.13,177.12,5.6448]
[1748034106685,0.04007179,177.13,177.11,5.6449]
[1748034106887,0.04007179,177.13,177.09,0.04035384]
[1748034107083,0.04007179,177.13,177.12,5.6448]
[1748034107291,0.04007179,177.13,177.12,230.8248]
[1748034108380,7.179e-05,177.13,177.12,230.8248]
[1748034109187,5.23285095,177.19,177.18,5.6429]
[1748034110485,0.04267396,177.2,177.19,5.6425]
[1748034110681,6.97713461,177.22,177.17,10.04470998]
[1748034110887,6.97713461,177.22,177.17,11.96790998]
[1748034111087,3.461e-05,177.22,177.21,5.6419]
[1748034111290,3.461e-05,177.22,177.21,112.9019]
[1748034111792,2.894e-05,177.23,177.22,5.6416]
[1748034112898,117.9,177.31,177.21,107.300252]
[1748034112899,123.5389,177.31,177.21,107.300252]
[1748034113099,117.9,177.31,177.21,107.300252]
[1748034113402,123.5388,177.31,177.21,107.300252]
[1748034113700,117.9,177.31,177.21,107.300252]
[1748034113902,0.03826348,177.28,177.21,107.300252]
[1748034114097,5.6401,177.27,177.21,107.300252]
[1748034114398,0.03826348,177.28,177.21,107.280252]
[1748034114896,0.03826348,177.28,177.21,112.922052]
[1748034115089,0.03826348,177.28,177.21,0.040252]
[1748034115295,117.88,177.27,177.21,0.040252]
[1748034115601,5.6415,177.23,177.21,0.040252]
[1748034116095,5.68368494,177.24,177.21,0.040252]
[1748034116303,0.04268494,177.24,177.21,0.040252]
[1748034116597,5.68368494,177.24,177.21,0.040252]
[1748034117401,0.04268494,177.24,177.21,0.040252]
[1748034119202,0.04268494,177.24,177.21,5.682052]
[1748034119499,0.04268494,177.24,177.21,0.040252]
[1748034120100,5.68388494,177.24,177.21,0.040252]
[1748034120303,0.04268494,177.24,177.21,0.040252]
[1748034120602,5.6433,177.17,177.13,123.5043]
[1748034120800,117.86,177.19,177.09,225.08]
[1748034121203,5.6435,177.16,177.12,5.6445]
[1748034121397,1.8374,177.18,177.09,117.86]
[1748034121698,0.03709902,177.15,177.12,0.03853179]
[1748034121908,5.68109902,177.15,177.12,5.68323179]
[1748034122105,0.03709902,177.15,177.12,0.03853179]
[1748034122309,5.68109902,177.15,177.12,0.03853179]
[1748034123211,5.6442,177.14,177.12,0.03853179]
[1748034123809,0.03709902,177.15,177.12,0.03853179]
[1748034124509,117.91709902,177.15,177.12,0.03853179]
[1748034124906,5.6444,177.13,177.12,0.03853179]
[1748034139421,5.6464,177.07,177.02,225.18]
[1748034140016,117.9,177.11,177.02,225.18]
[1748034140416,0.03996358,177.08,177.05,5.68366515]
[1748034141325,0.03996358,177.08,177.05,0.03696515]
[1748034142021,0.03996358,177.08,177.07,5.6464]
[1748034144221,0.03996358,177.08,177.06,5.6466]
[1748034147620,0.03996358,177.08,177.07,5.6464]
[1748034157637,5.6428,177.19,177.07,172.64675668]
[1748034157930,117.9,177.24,177.11,10.00675668]
[1748034158131,12.54541381,177.22,177.12,117.9]
[1748034158332,6.90381381,177.22,177.12,274.9]
[1748034158532,0.03706435,177.19,177.15,0.03934331]
[1748034158735,0.03706435,177.19,177.16,107.28]
[1748034159037,0.03706435,177.19,177.17,5.6429]
[1748034159230,0.03706435,177.19,177.16,107.28]
[1748034159636,0.03706435,177.19,177.16,112.9232]
[1748034159935,0.03706435,177.19,177.16,107.28]
[1748034160740,0.03706435,177.19,177.18,5.6429]
[1748034162441,6.435e-05,177.19,177.18,162.6429]
[1748034164141,1.9677,177.27,177.18,162.6429]
[1748034164142,1.9677,177.27,177.18,157.0]
[1748034164833,1.8359,177.28,177.18,157.0]
[1748034165138,1.8636,177.29,177.27,5.6398]
[1748034165537,1.8636,177.29,177.26,0.04309048]
[1748034165838,1.8636,177.29,177.27,5.64]
[1748034166038,0.03697915,177.3,177.26,0.04309048]
[1748034166343,0.03697915,177.3,177.27,117.82]
[1748034166840,0.03697915,177.3,177.29,5.6394]
[1748034168735,0.03697915,177.3,177.26,157.04309048]
[1748034168943,0.03697915,177.3,177.26,0.04309048]
[1748034169346,5.6396,177.29,177.26,0.04309048]
[1748034170049,0.03697915,177.3,177.26,0.04309048]
[1748034170050,5.67607915,177.3,177.26,0.04309048]
[1748034170941,5.6394,177.29,177.26,0.04309048]
[1748034171744,10.04373583,177.3,177.26,0.04309048]
[1748034172044,2.0025,177.28,177.26,0.04309048]
[1748034172239,119.7825,177.28,177.26,0.04309048]
[1748034172439,7.5389,177.27,177.26,0.04309048]
[1748034172636,9.4541,177.27,177.26,0.04309048]
[1748034175052,5.6412,177.24,177.18,117.78]
[1748034175239,5.6412,177.24,177.2,5.642]
[1748034175548,5.6412,177.24,177.18,117.78]
[1748034175747,5.6414,177.23,177.18,117.78]
[1748034176046,0.04274157,177.22,177.19,0.03651443]
[1748034176251,0.04274157,177.22,177.19,5.67891443]
[1748034176541,0.04274157,177.22,177.19,0.03651443]
[1748034177349,0.04274157,177.22,177.21,5.6419]
[1748034178654,2.0025,177.28,177.24,5.6408]
[1748034179555,2.03864164,177.28,177.25,5.6406]
[1748034179749,0.03614164,177.28,177.24,0.03943531]
[1748034180248,0.03614164,177.28,177.25,5.6406]
[1748034183655,0.03614164,177.28,177.26,5.6403]
[1748034183950,0.03614164,177.28,177.24,0.03943531]
[1748034184155,0.03614164,177.28,177.25,5.6406]
[1748034184353,0.03614164,177.28,177.24,0.03943531]
[1748034184654,5.6405,177.26,177.24,0.03943531]
[1748034185050,0.03614164,177.28,177.24,0.03943531]
[1748034186057,5.67584164,177.28,177.25,5.6404]
[1748034186251,0.03614164,177.28,177.24,0.03943531]
[1748034188566,0.03614164,177.28,177.24,5.68033531]
[1748034189061,0.03614164,177.28,177.24,0.03943531]
[1748034189463,0.03614164,177.28,177.25,5.6404]
[1748034189759,0.03614164,177.28,177.24,0.03943531]
[1748034190161,0.03614164,177.28,177.26,5.6401]
[1748034193573,0.03614164,177.28,177.25,5.6406]
[1748034194578,0.03614164,177.28,177.24,0.03943531]
[1748034195068,0.03614164,177.28,177.27,5.64]
[1748034195669,4.164e-05,177.28,177.27,112.84]
[1748034196870,4.164e-05,177.28,177.27,5.64]
[1748034197077,4.164e-05,177.28,177.27,230.54]
[1748034201077,4.164e-05,177.28,177.24,0.03943531]
[1748034201282,4.164e-05,177.28,177.25,107.16]
[1748034201484,4.164e-05,177.28,177.27,5.64]
[1748034202173,4.164e-05,177.28,177.25,107.16]
[1748034202781,4.164e-05,177.28,177.27,5.64]
[1748034210588,4.164e-05,177.28,177.26,5.6402]
[1748034210981,4.164e-05,177.28,177.24,0.03943531]
[1748034212092,5.6402,177.27,177.24,0.03943531]
[1748034212389,4.164e-05,177.28,177.24,0.03943531]
[1748034212689,5.6401,177.27,177.24,0.03943531]
[1748034213489,4.164e-05,177.28,177.24,0.03943531]
[1748034213689,4.164e-05,177.28,177.19,5.10650807]
[1748034213690,117.7,177.27,177.19,5.10650807]
[1748034214280,10.00675668,177.26,177.19,5.10650807]
[1748034214686,5.6416,177.22,177.21,0.03980422]
[1748034215188,0.04285677,177.24,177.21,0.03980422]
[1748034216596,5.6416,177.22,177.21,0.03980422]
[1748034222001,10.00675668,177.18,177.07,5.10650807]
[1748034222201,117.72,177.17,177.1,5.6454]
[1748034222403,117.72,177.17,177.07,5.10650807]
[1748034222700,5.8977,177.16,177.07,5.10650807]
[1748034222900,0.04046646,177.13,177.1,0.04073609]
[1748034224303,0.04046646,177.13,177.11,5.6448]
[1748034224503,0.04046646,177.13,177.1,0.04073609]
[1748034225599,0.04046646,177.13,177.12,5.6448]
[1748034226305,0.04046646,177.13,177.1,0.04073609]
[1748034227702,0.04046646,177.13,177.1,5.68593609]
[1748034227898,0.04046646,177.13,177.1,0.04073609]
[1748034228099,0.04046646,177.13,177.1,5.68593609]
[1748034228903,5.68506646,177.13,177.1,0.04073609]
[1748034229099,0.04046646,177.13,177.1,0.04073609]
[1748034229805,5.68516646,177.13,177.1,0.04073609]
[1748034230008,0.04046646,177.13,177.01,117.68]
[1748034230200,127.68675668,177.15,177.01,224.92]
[1748034230396,117.68,177.15,177.03,10.00675668]
[1748034230904,117.68,177.15,177.09,5.6456]
[1748034231106,0.04051616,177.11,177.07,0.0396182]
[1748034231807,0.04051616,177.11,177.09,5.6455]
[1748034232107,0.04051616,177.11,177.07,0.0396182]
[1748034234612,0.04051616,177.11,177.09,5.6456]
[1748034236114,0.04051616,177.11,177.1,5.6454]
[1748034236411,0.04051616,177.11,177.07,0.0396182]
[1748034236712,0.04051616,177.11,177.08,5.646]
[1748034237613,0.04051616,177.11,177.09,5.6457]
[1748034238717,0.04051616,177.11,177.08,5.6459]
[1748034239014,0.04051616,177.11,177.07,0.0396182]
[1748034239917,0.04051616,177.11,177.07,5.6859182]
[1748034240418,5.6458,177.09,177.07,0.0396182]
[1748034241213,5.6455,177.1,177.07,0.0396182]
[1748034241421,5.6455,177.1,177.07,5.6859182]
[1748034241915,5.68571616,177.11,177.08,5.6458]
[1748034242119,0.04051616,177.11,177.07,0.0396182]
[1748034243119,0.04051616,177.11,177.09,5.6457]
[1748034243318,0.04051616,177.11,177.07,0.0396182]
[1748034243621,0.04051616,177.11,177.1,5.6454]
[1748034245319,0.04051616,177.11,177.07,0.0396182]
[1748034246219,5.646,177.08,177.07,0.0396182]
[1748034246417,117.76051616,177.11,177.07,0.0396182]
[1748034246717,5.6456,177.1,177.07,0.0396182]
[1748034247215,5.6457,177.09,177.07,0.0396182]
[1748034249118,5.646,177.08,177.07,0.0396182]
[1748034249719,5.6458,177.09,177.07,0.0396182]
[1748034254221,5.6455,177.1,177.07,0.0396182]
[1748034254422,117.76051616,177.11,177.08,117.64]
[1748034254423,0.04051616,177.11,177.08,117.64]
[1748034255220,0.04051616,177.11,177.1,5.6454]
[1748034256718,0.04051616,177.11,177.07,10.04637488]
[1748034256719,0.04051616,177.11,177.07,0.0396182]
[1748034257310,5.646,177.08,177.07,0.0396182]
[1748034259226,5.64,177.08,177.0,117.64]
[1748034259424,124.54381381,177.15,177.03,10.00675668]
[1748034259824,6.90381381,177.15,177.04,117.64]
[1748034260013,12.54761381,177.15,177.04,119.522]
[1748034260214,0.04048359,177.11,177.08,0.04097263]
[1748034260428,0.04048359,177.11,177.08,117.68097263]
[1748034260633,0.04048359,177.11,177.1,5.6451]
[1748034270421,8.359e-05,177.11,177.1,5.6451]
[1748034270623,6.90381381,177.19,177.16,5.6433]
[1748034271634,6.94120009,177.19,177.16,0.04005612]
[1748034272736,12.58390009,177.19,177.16,0.04005612]
[1748034272931,6.94120009,177.19,177.16,0.04005612]
[1748034273323,5.6432,177.17,177.16,0.04005612]
[1748034273529,6.94120009,177.19,177.13,117.62]
[1748034273832,1.877,177.18,177.11,5.6449]
[1748034274030,5.644,177.15,177.11,123.2649]
[1748034274337,1.877,177.18,177.11,123.2649]
[1748034274338,1.877,177.18,177.12,5.6445]
[1748034274637,1.877,177.18,177.11,117.62]
[1748034274638,0.0424825,177.17,177.13,0.03882647]
[1748034274937,0.0424825,177.17,177.14,5.6439]
[1748034275642,0.0424825,177.17,177.13,0.03882647]
[1748034276035,5.6441,177.14,177.13,0.03882647]
[1748034299264,12.54791381,177.14,177.13,0.03882647]
[1748034302769,5.6441,177.14,177.13,0.03882647]
[1748034302967,6.90381381,177.16,177.13,0.03882647]
[1748034303361,6.90381381,177.16,177.13,117.57882647]
[1748034304670,6.90381381,177.16,177.13,0.03882647]
[1748034304966,5.6441,177.14,177.13,0.03882647]
[1748034323585,6.90381381,177.15,177.13,0.03882647]
[1748034323975,6.90381381,177.15,177.13,117.45882647]
[1748034324177,6.90381381,177.15,177.14,5.6441]
[1748034325484,6.90381381,177.15,177.13,123.10312647]
[1748034325983,5.6857825,177.17,177.13,123.10312647]
[1748034326285,0.0424825,177.17,177.13,123.10312647]
[1748034326586,5.6437,177.16,177.13,117.45882647]
[1748034327284,5.6439,177.15,177.13,117.45882647]